bitfinex/quotes_SOLUSD_20250823
["timestamp","ask_amount","ask_price","bid_price","bid_amount"]
[1755978899725,4.83511883,204.47,204.46,0.03]
[1755978901124,30.83511883,204.47,204.46,0.03]
[1755978901322,31.49511883,204.47,204.46,0.03]
[1755978901528,31.49511883,204.47,204.45,0.03]
[1755978901841,5.49511883,204.46,204.45,0.03]
[1755978902969,4.83511883,204.46,204.45,0.7]
[1755978903130,4.83511883,204.46,204.45,0.03]
[1755978903338,5.49511883,204.46,204.45,0.03]
[1755978908746,4.83511883,204.46,204.45,0.03]
[1755978908931,5.49511883,204.46,204.45,0.03]
[1755978910148,4.83511883,204.46,204.45,0.03]
[1755978911641,5.49511883,204.46,204.45,0.03]
[1755978912637,4.83511883,204.46,204.45,0.03]
[1755978912841,5.49511883,204.46,204.45,0.03]
[1755978913637,4.83511883,204.46,204.45,0.03]
[1755978915756,4.89511883,204.46,204.45,0.03]
[1755978923674,4.89511883,204.46,204.45,0.7]
[1755978924373,4.89511883,204.46,204.45,0.03]
[1755978925578,7.59423775,204.46,204.45,0.03]
[1755978930778,8.28423775,204.46,204.45,0.03]
[1755978931556,7.59423775,204.46,204.45,0.03]
[1755978935376,0.06,204.46,204.45,0.74]
[1755978935578,7.59423775,204.46,204.45,0.74]
[1755978936290,7.59423775,204.46,204.45,19.22676544]
[1755978936291,0.06,204.46,204.45,19.22676544]
[1755978936586,0.06,204.46,204.45,56.54676544]
[1755978939084,0.06,204.46,204.45,51.65559401]
[1755978939582,0.06,204.46,204.45,56.54676544]
[1755978955883,7.59423775,204.46,204.45,55.83676544]
[1755978956685,7.59423775,204.46,204.45,56.54676544]
[1755978959799,0.06,204.46,204.45,56.54676544]
[1755978960499,7.59423775,204.46,204.45,56.54676544]
[1755978974324,0.06,204.46,204.45,56.54676544]
[1755978977526,7.59423775,204.46,204.45,56.54676544]
[1755978985005,7.59423775,204.46,204.45,55.83676544]
[1755978986835,7.59423775,204.46,204.45,56.49676544]
[1755978987634,7.59423775,204.46,204.45,55.83676544]
[1755978987927,7.59423775,204.46,204.45,56.54676544]
[1755978994628,0.06,204.46,204.45,56.54676544]
[1755978994811,7.59423775,204.46,204.45,56.54676544]
[1755978995553,7.59423775,204.46,204.45,55.83676544]
[1755978997857,7.59423775,204.46,204.45,56.54676544]
[1755978998750,0.06,204.46,204.45,56.54676544]
[1755978998936,7.59423775,204.46,204.45,56.54676544]
[1755979003361,7.59423775,204.46,204.45,55.83676544]
[1755979003658,7.59423775,204.46,204.45,56.54676544]
[1755979006658,0.06,204.46,204.45,56.54676544]
[1755979006961,7.59423775,204.46,204.45,56.54676544]
[1755979008465,7.59423775,204.46,204.45,56.50676544]
[1755979024957,0.06,204.46,204.45,56.50676544]
[1755979025298,7.59423775,204.46,204.45,56.50676544]
[1755979045778,0.06,204.46,204.45,56.50676544]
[1755979045978,7.59423775,204.46,204.45,56.50676544]
[1755979048707,0.06,204.46,204.45,56.50676544]
[1755979048899,7.59423775,204.46,204.45,55.79676544]
[1755979051787,7.59423775,204.46,204.45,13.62559401]
[1755979052002,8.29423775,204.46,204.45,50.88559401]
[1755979052705,7.59423775,204.46,204.45,50.88559401]
[1755979060802,7.59423775,204.46,204.45,55.77676544]
[1755979078019,0.06,204.46,204.45,55.77676544]
[1755979078220,7.59423775,204.46,204.45,55.77676544]
[1755979082115,7.59423775,204.46,204.45,50.88559401]
[1755979082433,8.29423775,204.46,204.45,0.03]
[1755979106941,0.76,204.46,204.45,0.03]
[1755979107246,7.59423775,204.46,204.45,0.03]
[1755979107846,8.29423775,204.46,204.45,0.03]
[1755979110049,7.59423775,204.46,204.45,0.03]
[1755979110347,8.29423775,204.46,204.45,0.03]
[1755979111638,7.59423775,204.46,204.45,0.03]
[1755979111839,8.29423775,204.46,204.45,0.03]
[1755979115023,7.59423775,204.46,204.45,0.03]
[1755979116830,8.29423775,204.46,204.45,0.03]
[1755979120074,7.59423775,204.46,204.45,0.03]
[1755979125845,8.29423775,204.46,204.45,0.03]
[1755979126734,7.59423775,204.46,204.45,0.03]
[1755979127970,8.29423775,204.46,204.45,0.03]
[1755979128256,7.59423775,204.46,204.45,0.03]
[1755979128459,8.29423775,204.46,204.45,0.03]
[1755979128840,7.59423775,204.46,204.45,0.03]
[1755979129436,8.29423775,204.46,204.45,0.03]
[1755979129641,7.59423775,204.46,204.45,0.03]
[1755979131863,0.06,204.46,204.45,0.03]
[1755979132252,7.59423775,204.46,204.45,0.03]
[1755979139271,0.06,204.46,204.45,14.30559401]
[1755979140474,7.59423775,204.46,204.45,14.30559401]
[1755979141254,7.59423775,204.46,204.45,19.19676544]
[1755979149875,7.59423775,204.46,204.45,14.30559401]
[1755979150376,7.59423775,204.46,204.45,51.52559401]
[1755979153982,7.59423775,204.46,204.45,14.30559401]
[1755979154280,7.59423775,204.46,204.45,51.52559401]
[1755979162892,7.59423775,204.46,204.45,50.84559401]
[1755979163211,8.31423775,204.46,204.45,50.84559401]
[1755979171414,7.59423775,204.46,204.45,50.84559401]
[1755979175014,7.59423775,204.46,204.45,13.62559401]
[1755979175319,7.59423775,204.46,204.45,50.84559401]
[1755979177522,7.59423775,204.46,204.45,51.52559401]
[1755979177722,7.59423775,204.46,204.45,50.84559401]
[1755979180423,7.59423775,204.46,204.45,37.25]
[1755979180628,8.31423775,204.46,204.45,37.25]
[1755979182521,8.31423775,204.46,204.45,0.03]
[1755979200554,7.59423775,204.46,204.45,0.03]
[1755979200873,8.25423775,204.46,204.45,0.03]
[1755979203151,7.59423775,204.46,204.45,0.03]
[1755979205449,8.25423775,204.46,204.45,0.03]
[1755979206358,7.59423775,204.46,204.45,0.03]
[1755979208074,0.06,204.46,204.45,0.72]
[1755979208372,7.59423775,204.46,204.45,14.31559401]
[1755979208566,0.06,204.46,204.45,14.31559401]
[1755979210277,0.06,204.46,204.45,19.20676544]
[1755979211269,0.06,204.46,204.45,63.96100319]
[1755979211473,1e-08,204.46,204.45,63.96100319]
[1755979212959,1e-08,204.46,204.45,68.92973384]
[1755979213350,1e-08,204.46,204.45,64.24532633]
[1755979213784,0.06,204.49,204.46,13.87991715]
[1755979213959,0.06,204.49,204.48,21.12983176]
[1755979214276,0.06,204.49,204.48,58.34983176]
[1755979214453,0.06,204.51,204.5,21.12983176]
[1755979214855,0.06,204.51,204.5,21.81983176]
[1755979215953,0.06,204.51,204.5,26.70980731]
[1755979218320,0.06,204.51,204.5,19.17556956]
[1755979218492,0.06,204.51,204.5,13.59559401]
[1755979218696,8.25423775,204.51,204.5,50.81559401]
[1755979218856,8.25423775,204.51,204.5,13.59559401]
[1755979219807,8.25423775,204.51,204.46,5.5808999]
[1755979219974,7.53423775,204.5,204.47,50.81559401]
[1755979220358,8.19423775,204.5,204.47,50.81559401]
[1755979220564,8.19423775,204.5,204.47,51.50559401]
[1755979220760,8.19423775,204.5,204.47,56.39627201]
[1755979221178,0.66,204.49,204.46,4.8908799]
[1755979221378,0.66,204.49,204.48,13.59559401]
[1755979221768,0.66,204.49,204.45,0.03]
[1755979221962,8.19423775,204.49,204.46,37.22]
[1755979222188,0.66,204.48,204.45,0.03]
[1755979222977,0.66,204.47,204.45,0.03]
[1755979223507,0.66,204.46,204.45,0.03]
[1755979223709,0.66,204.48,204.45,0.03]
[1755979224089,7.53423775,204.49,204.45,0.03]
[1755979224306,0.66,204.47,204.45,0.03]
[1755979224601,0.66,204.48,204.45,0.03]
[1755979226206,11.76624934,204.49,204.45,0.03]
[1755979226406,0.66,204.47,204.45,0.03]
[1755979226783,0.66,204.48,204.45,0.03]
[1755979227583,11.76624934,204.47,204.46,13.59559401]
[1755979227781,12.47624934,204.47,204.46,13.59559401]
[1755979232314,11.76624934,204.48,204.46,13.59559401]
[1755979232517,11.76624934,204.49,204.46,13.59559401]
[1755979232825,12.47624934,204.49,204.46,13.59559401]
[1755979233187,0.71,204.48,204.46,13.59559401]
[1755979236215,37.82624934,204.51,204.46,13.59559401]
[1755979236389,0.71,204.49,204.46,13.59559401]
[1755979237314,0.71,204.5,204.46,14.26559401]
[1755979237612,0.71,204.5,204.47,0.67]
[1755979238019,12.47624934,204.5,204.47,0.67]
[1755979239218,12.47624934,204.5,204.46,19.15648752]
[1755979240414,0.71,204.5,204.46,19.15648752]
[1755979241211,12.47624934,204.5,204.46,19.15648752]
[1755979241592,12.47624934,204.5,204.46,18.48648752]
[1755979241795,12.47624934,204.5,204.47,0.67]
[1755979242111,12.47624934,204.5,204.46,18.48648752]
[1755979242410,0.71,204.49,204.46,13.59559401]
[1755979242612,11.76624934,204.47,204.45,0.03]
[1755979242803,11.76624934,204.46,204.45,0.03]
[1755979243003,12.47624934,204.46,204.45,0.03]
[1755979246398,8.24297919,204.46,204.45,0.03]
[1755979248096,34.24297919,204.46,204.45,0.03]
[1755979251826,26.71,204.46,204.45,0.03]
[1755979252001,26.0,204.46,204.45,0.7]
[1755979252213,80.5,204.48,204.45,0.7]
[1755979252531,26.0,204.49,204.45,0.7]
[1755979252703,37.76776562,204.49,204.45,0.7]
[1755979252909,11.76776562,204.49,204.45,0.7]
[1755979253120,11.76776562,204.49,204.45,0.03]
[1755979253430,37.76776562,204.49,204.46,0.67]
[1755979253626,38.47776562,204.49,204.45,0.03]
[1755979253805,38.47776562,204.49,204.45,0.7]
[1755979255013,38.47776562,204.49,204.46,0.67]
[1755979255831,38.47776562,204.49,204.45,0.03]
[1755979256324,11.76776562,204.48,204.45,0.7]
[1755979256906,11.76776562,204.48,204.45,0.03]
[1755979257135,11.76776562,204.48,204.46,0.67]
[1755979260035,11.76776562,204.48,204.45,0.03]
[1755979260233,38.47776562,204.49,204.45,0.03]
[1755979260411,12.43776562,204.48,204.45,0.03]
[1755979260822,0.67,204.47,204.45,0.03]
[1755979261140,11.76776562,204.46,204.45,0.03]
[1755979261533,12.43776562,204.46,204.45,0.03]
[1755979264620,38.43776562,204.46,204.45,0.03]
[1755979272423,34.20400085,204.46,204.45,0.03]
[1755979281853,33.53400085,204.46,204.45,0.03]
[1755979286563,33.53400085,204.46,204.45,0.74]
[1755979287241,33.53400085,204.46,204.45,0.03]
[1755979295653,34.22400085,204.46,204.45,0.03]
[1755979298273,39.11493306,204.46,204.45,0.03]
[1755979302370,39.3992562,204.46,204.45,0.03]
[1755979302549,76.6192562,204.46,204.45,0.03]
[1755979303859,0.28432314,204.45,204.44,0.03]
[1755979304060,80.78432314,204.44,204.43,0.03]
[1755979304259,0.28432314,204.43,204.42,0.03]
[1755979304460,13.39997394,204.43,204.42,0.03]
[1755979306190,13.39997394,204.43,204.41,0.03]
[1755979306374,13.39997394,204.43,204.37,1786.4863]
[1755979306375,12.42660812,204.39,204.37,1786.4863]
[1755979306559,49.68660812,204.39,204.37,1786.4863]
[1755979306758,50.66093126,204.39,204.37,1786.4863]
[1755979308961,43.12693041,204.39,204.37,1786.4863]
[1755979309154,50.66093126,204.39,204.37,1786.4863]
[1755979311970,0.28432314,204.39,204.37,1786.4863]
[1755979312175,33.53400085,204.39,204.38,0.7]
[1755979313773,33.53400085,204.39,204.38,0.03]
[1755979313975,39.40093126,204.39,204.38,0.03]
[1755979316386,38.71093126,204.39,204.38,0.03]
[1755979317264,33.81832399,204.39,204.38,0.7]
[1755979318289,33.81832399,204.39,204.38,0.03]
[1755979319292,38.71093126,204.39,204.38,0.03]
[1755979319892,39.36093126,204.39,204.38,0.03]
[1755979320591,0.28432314,204.38,204.37,1727.73560224]
[1755979320796,135.59832399,204.38,204.37,1727.73560224]
[1755979320986,136.24832399,204.38,204.37,1727.73560224]
[1755979321566,141.14117064,204.38,204.37,1668.95490448]
[1755979322270,145.39591616,204.38,204.37,1638.82362244]
[1755979322972,135.39591616,204.38,204.37,1638.82362244]
[1755979324081,54.89591616,204.38,204.37,1638.82362244]
[1755979325564,16.96591616,204.38,204.37,1638.82362244]
[1755979325771,49.39306951,204.38,204.37,1638.82362244]
[1755979325977,54.93591616,204.38,204.37,1638.82362244]
[1755979326668,54.28591616,204.38,204.37,1638.82362244]
[1755979330391,54.93591616,204.38,204.37,1638.82362244]
[1755979331398,54.28591616,204.38,204.37,1638.82362244]
[1755979332179,54.93591616,204.38,204.37,1638.82362244]
[1755979332378,54.28591616,204.38,204.37,1638.82362244]
[1755979341198,42.49716979,204.38,204.37,1639.51362244]
[1755979341590,54.28591616,204.38,204.37,1639.51362244]
[1755979342419,50.03709724,204.38,204.37,1638.82362244]
[1755979342799,50.03709724,204.38,204.37,1639.51362244]
[1755979343217,50.01709724,204.38,204.37,1639.51362244]
[1755979344018,50.01709724,204.38,204.37,1639.54362244]
[1755979345099,45.12425059,204.38,204.37,1639.54362244]
[1755979345299,50.01709724,204.38,204.37,1639.54362244]
[1755979345888,12.71709724,204.38,204.37,1639.54362244]
[1755979346293,50.01709724,204.38,204.37,1639.54362244]
[1755979347199,50.01709724,204.38,204.37,1638.85362244]
[1755979351004,50.67709724,204.38,204.37,1638.85362244]
[1755979352328,54.34606391,204.38,204.37,1638.85362244]
[1755979353326,50.67709724,204.38,204.37,1638.85362244]
[1755979353814,54.3454907,204.38,204.37,1638.85362244]
[1755979354193,50.67709724,204.38,204.37,1638.85362244]
[1755979357204,54.34604089,204.38,204.37,1638.85362244]
[1755979358401,54.34604089,204.38,204.37,1555.4785195]
[1755979358610,64.34604089,204.38,204.37,1555.4785195]
[1755979359323,64.34604089,204.38,204.37,1496.69782174]
[1755979359700,64.34604089,204.38,204.37,1472.06382464]
[1755979360431,64.34438345,204.38,204.37,1413.28312688]
[1755979361033,64.40438345,204.38,204.37,1413.28312688]
[1755979362708,64.40438345,204.38,204.37,1362.34027865]
[1755979363029,64.40438345,204.38,204.37,1310.63729761]
[1755979363202,64.40438345,204.38,204.37,1285.40618922]
[1755979364426,56.864456,204.38,204.37,1285.40618922]
[1755979364631,64.40438345,204.38,204.37,1285.40618922]
[1755979366616,60.73709724,204.38,204.37,1285.40618922]
[1755979366815,64.40504231,204.38,204.37,1285.40618922]
[1755979368026,64.40504231,204.38,204.37,1260.44564637]
[1755979368332,64.40504231,204.38,204.37,1184.56584275]
[1755979368532,64.40504231,204.38,204.37,1159.46752164]
[1755979368907,63.78504231,204.38,204.37,1159.46752164]
[1755979371331,26.44504231,204.38,204.37,1159.46752164]
[1755979371535,63.78504231,204.38,204.37,1159.46752164]
[1755979373037,26.44504231,204.38,204.37,1159.46752164]
[1755979373237,63.78504231,204.38,204.37,1159.46752164]
[1755979373621,56.24511486,204.38,204.37,1159.46752164]
[1755979373825,63.78504231,204.38,204.37,1159.46752164]
[1755979376438,60.11709724,204.38,204.37,1159.46752164]
[1755979376639,63.78269057,204.38,204.37,1159.46752164]
[1755979377112,26.44269057,204.38,204.37,1159.46752164]
[1755979377417,64.44269057,204.38,204.37,1159.46752164]
[1755979377817,63.78269057,204.38,204.37,1159.46752164]
[1755979378143,63.78255127,204.38,204.37,1159.46752164]
[1755979378944,65.61510117,204.38,204.37,1159.46752164]
[1755979379443,63.78255127,204.38,204.37,1159.46752164]
[1755979380340,65.61474526,204.38,204.37,1159.46752164]
[1755979381441,58.07481781,204.38,204.37,1134.6426647]
[1755979381639,65.61474526,204.38,204.37,1134.6426647]
[1755979383342,63.78255127,204.38,204.37,1134.6426647]
[1755979383641,64.48255127,204.38,204.37,1134.6426647]
[1755979383854,63.78255127,204.38,204.37,1134.6426647]
[1755979385240,60.11709724,204.38,204.37,1134.6426647]
[1755979385441,63.77968422,204.38,204.37,1134.6426647]
[1755979386044,26.43943953,204.38,204.37,1134.6426647]
[1755979386246,63.75943953,204.38,204.37,1134.6426647]
[1755979388547,64.45943953,204.38,204.37,1134.6426647]
[1755979388718,66.29074261,204.38,204.37,1026.11612656]
[1755979389126,26.43943953,204.38,204.37,1026.11612656]
[1755979389341,63.75943953,204.38,204.37,1026.78612656]
[1755979389847,26.43943953,204.38,204.37,1026.78612656]
[1755979390040,56.21951208,204.38,204.37,1026.78612656]
[1755979390421,63.75943953,204.38,204.37,1026.78612656]
[1755979393347,56.21951208,204.38,204.37,1026.78612656]
[1755979393653,53.75943953,204.38,204.37,1026.78612656]
[1755979393849,63.75943953,204.38,204.37,1026.78612656]
[1755979394949,60.09709724,204.38,204.37,1026.78612656]
[1755979395149,63.7624346,204.38,204.37,1026.78612656]
[1755979396059,63.7624346,204.38,204.37,967.3354288]
[1755979396359,65.59534177,204.38,204.37,967.3354288]
[1755979396537,70.30634045,204.38,204.37,967.3354288]
[1755979396956,70.30634045,204.38,204.37,908.55473104]
[1755979397333,32.98634045,204.38,204.37,908.55473104]
[1755979397542,69.66634045,204.38,204.37,908.55473104]
[1755979398052,69.66634045,204.38,204.37,849.77403328]
[1755979398246,67.83343328,204.38,204.37,849.77403328]
[1755979398483,69.66687547,204.38,204.37,849.77403328]
[1755979401456,69.66705053,204.38,204.37,849.77403328]
[1755979402363,69.66705053,204.38,204.37,825.14604716]
[1755979402585,69.66705053,204.38,204.37,800.51806104]
[1755979403643,69.66705053,204.38,204.37,801.18806104]
[1755979404775,69.67017101,204.38,204.37,801.18806104]
[1755979405455,69.67019355,204.38,204.37,801.18806104]
[1755979407466,65.65919487,204.38,204.37,801.18806104]
[1755979411401,65.65955014,204.38,204.37,801.18806104]
[1755979412703,28.27955014,204.38,204.37,801.18806104]
[1755979412884,65.65955014,204.38,204.37,801.18806104]
[1755979413069,55.65955014,204.38,204.37,801.18806104]
[1755979413390,65.65955014,204.38,204.37,800.51806104]
[1755979413592,65.65955014,204.38,204.37,801.20806104]
[1755979414394,65.65955014,204.38,204.37,800.51806104]
[1755979414588,65.66061042,204.38,204.37,800.51806104]
[1755979414998,65.66062116,204.38,204.37,800.51806104]
[1755979415176,28.28062116,204.38,204.37,800.51806104]
[1755979415377,65.66108168,204.38,204.37,800.51806104]
[1755979417593,48.12115423,204.38,204.37,801.20806104]
[1755979417812,55.66108168,204.38,204.37,801.20806104]
[1755979418724,65.66108168,204.38,204.37,801.20806104]
[1755979420508,53.82657729,204.38,204.37,801.20806104]
[1755979424408,53.82648596,204.38,204.37,801.20806104]
[1755979424606,8.90655851,204.38,204.37,801.20806104]
[1755979424813,42.61716979,204.38,204.37,801.20806104]
[1755979424998,0.06,204.38,204.37,801.20806104]
[1755979425201,37.42,204.38,204.37,801.20806104]
[1755979425592,63.42,204.38,204.37,801.20806104]
[1755979425798,63.56216157,204.38,204.37,801.20806104]
[1755979426003,37.56216157,204.38,204.37,801.20806104]
[1755979426317,0.20216157,204.38,204.37,801.20806104]
[1755979426490,63.70432314,204.38,204.37,801.20806104]
[1755979429718,26.34432314,204.38,204.37,801.20806104]
[1755979430023,63.70432314,204.38,204.37,801.20806104]
[1755979432105,0.34432314,204.38,204.37,801.20806104]
[1755979439300,33.88425059,204.38,204.37,801.20806104]
[1755979439496,39.43709724,204.38,204.37,800.51806104]
[1755979439728,13.43709724,204.38,204.37,800.51806104]
[1755979442623,39.43709724,204.38,204.37,800.51806104]
[1755979442841,50.77709724,204.38,204.37,800.51806104]
[1755979443028,13.43709724,204.38,204.37,800.51806104]
[1755979443223,39.43709724,204.38,204.37,800.51806104]
[1755979443557,42.57716979,204.38,204.37,800.51806104]
[1755979443720,50.77709724,204.38,204.37,800.51806104]
[1755979444124,50.11709724,204.38,204.37,800.51806104]
[1755979446151,50.77709724,204.38,204.37,800.51806104]
[1755979451742,50.11709724,204.38,204.37,800.51806104]
[1755979452226,50.77709724,204.38,204.37,800.51806104]
[1755979452428,50.11709724,204.38,204.37,800.51806104]
[1755979452871,50.77709724,204.38,204.37,800.51806104]
[1755979453253,50.11709724,204.38,204.37,800.51806104]
[1755979459459,53.77935652,204.38,204.37,800.51806104]
[1755979460257,53.77972728,204.38,204.37,800.51806104]
[1755979461450,53.77972728,204.38,204.37,801.23806104]
[1755979462259,53.77972728,204.38,204.37,800.51806104]
[1755979462645,53.78027932,204.38,204.37,800.51806104]
[1755979463446,50.11709724,204.38,204.37,800.51806104]
[1755979463651,53.78057588,204.38,204.37,800.51806104]
[1755979464259,54.44057588,204.38,204.37,800.51806104]
[1755979464555,53.78057588,204.38,204.37,800.51806104]
[1755979472454,53.78097543,204.38,204.37,800.51806104]
[1755979472973,53.780242,204.38,204.37,800.51806104]
[1755979473267,53.78031176,204.38,204.37,800.51806104]
[1755979474770,54.46031176,204.38,204.37,748.51757235]
[1755979474956,54.46031176,204.38,204.37,721.57778132]
[1755979475154,68.05590577,204.38,204.37,635.85729253]
[1755979475469,73.53964093,204.38,204.37,535.50424341]
[1755979475674,73.53964093,204.38,204.37,504.20523505]
[1755979475975,73.53964093,204.38,204.37,470.37437819]
[1755979476156,73.53964093,204.38,204.37,406.19686071]
[1755979476356,73.53964093,204.38,204.37,400.80004099]
[1755979476556,73.53964093,204.38,204.37,395.40322127]
[1755979476760,73.53964093,204.38,204.37,385.5575527]
[1755979477065,78.25157809,204.38,204.37,374.47971326]
[1755979477257,78.25157809,204.38,204.37,275.42810039]
[1755979477453,78.25157809,204.38,204.37,234.52754929]
[1755979477653,78.25157809,204.38,204.37,194.45561258]
[1755979477848,78.25157809,204.38,204.37,190.00676373]
[1755979478049,78.25157809,204.38,204.37,156.74695827]
[1755979478246,78.25157809,204.38,204.37,62.51085667]
[1755979478777,28.77372159,204.34,204.33,0.1]
[1755979478941,77.27686356,204.34,204.33,0.1]
[1755979479145,77.95686356,204.34,204.33,0.1]
[1755979479346,8.55701896,204.34,204.33,0.71]
[1755979479558,53.41365894,204.34,204.33,0.71]
[1755979479754,53.55582051,204.34,204.33,0.71]
[1755979479972,0.14216157,204.33,204.32,0.74]
[1755979480472,7.82425059,204.33,204.32,0.74]
[1755979480671,16.37835521,204.33,204.32,0.74]
[1755979480857,12.71829453,204.33,204.32,0.74]
[1755979485883,7.82425059,204.33,204.32,0.74]
[1755979486767,4.19955829,204.33,204.32,0.74]
[1755979487089,11.73948574,204.33,204.32,0.74]
[1755979497391,11.73948574,204.33,204.32,0.03]
[1755979505568,11.73948574,204.33,204.32,0.71]
[1755979505984,4.19955829,204.33,204.32,0.71]
[1755979506294,75.03948574,204.33,204.32,0.71]
[1755979506486,49.03948574,204.33,204.32,0.71]
[1755979508103,49.09948574,204.33,204.32,0.71]
[1755979511375,49.77948574,204.33,204.32,0.03]
[1755979512299,49.09948574,204.33,204.32,0.03]
[1755979512602,49.77948574,204.33,204.32,0.03]
[1755979514182,49.09948574,204.33,204.32,0.03]
[1755979514773,49.09948574,204.33,204.32,0.71]
[1755979516505,52.7681366,204.33,204.32,0.71]
[1755979517097,49.09948574,204.33,204.32,0.71]
[1755979517297,52.76819605,204.33,204.32,0.71]
[1755979518205,45.2282686,204.33,204.32,0.71]
[1755979518410,52.76819605,204.33,204.32,0.71]
[1755979520302,49.09948574,204.33,204.32,0.71]
[1755979520615,52.77107894,204.33,204.32,0.71]
[1755979521120,45.23115149,204.33,204.32,0.71]
[1755979521288,52.77107894,204.33,204.32,0.71]
[1755979523022,45.23115149,204.33,204.32,0.71]
[1755979526401,41.55955829,204.33,204.32,0.71]
[1755979527330,49.09948574,204.33,204.32,0.71]
[1755979527821,52.77268038,204.33,204.32,0.71]
[1755979527993,49.09948574,204.33,204.32,0.71]
[1755979528726,52.77285185,204.33,204.32,0.71]
[1755979528905,49.09948574,204.33,204.32,0.71]
[1755979529427,52.77264968,204.33,204.32,0.71]
[1755979529628,52.77264968,204.33,204.32,0.03]
[1755979530129,49.09948574,204.33,204.32,0.03]
[1755979530303,45.23389706,204.33,204.32,0.03]
[1755979532124,52.77382451,204.33,204.32,0.03]
[1755979532827,15.47382451,204.33,204.32,0.03]
[1755979533031,52.77382451,204.33,204.32,0.03]
[1755979538225,15.47382451,204.33,204.32,0.03]
[1755979538414,52.77382451,204.33,204.32,0.03]
[1755979539740,49.09948574,204.33,204.32,0.03]
[1755979539938,52.77489152,204.33,204.32,0.03]
[1755979541616,15.47489152,204.33,204.32,0.03]
[1755979541817,52.77489152,204.33,204.32,0.03]
[1755979545935,45.23496407,204.33,204.32,0.03]
[1755979546134,52.77489152,204.33,204.32,0.03]
[1755979547751,45.23496407,204.33,204.32,0.03]
[1755979547954,52.77489152,204.33,204.32,0.03]
[1755979549369,15.47489152,204.33,204.32,0.03]
[1755979549668,52.77547049,204.33,204.32,0.03]
[1755979551670,53.49547049,204.33,204.32,0.03]
[1755979552984,53.49572429,204.33,204.32,0.03]
[1755979553662,52.77572429,204.33,204.32,0.03]
[1755979556277,52.77696814,204.33,204.32,0.03]
[1755979557464,49.09948574,204.33,204.32,0.03]
[1755979557766,52.77675858,204.33,204.32,0.03]
[1755979559478,52.77694313,204.33,204.32,0.03]
[1755979568392,52.77711743,204.33,204.32,0.03]
[1755979569087,49.09948574,204.33,204.32,0.03]
[1755979569290,52.77736424,204.33,204.32,0.03]
[1755979576490,53.45736424,204.33,204.32,0.03]
[1755979577375,45.23743679,204.33,204.32,0.68]
[1755979577594,71.23743679,204.33,204.32,0.68]
[1755979577772,78.77736424,204.33,204.32,0.68]
[1755979577973,78.77736424,204.33,204.32,0.03]
[1755979578204,78.77674085,204.33,204.32,0.03]
[1755979578705,78.77674045,204.33,204.32,0.03]
[1755979579009,78.77674235,204.33,204.32,0.03]
[1755979579592,79.45674235,204.33,204.32,0.03]
[1755979580112,78.77674235,204.33,204.32,0.03]
[1755979580405,41.47674235,204.33,204.32,0.03]
[1755979580610,75.07948574,204.33,204.32,0.03]
[1755979580810,78.75674394,204.33,204.32,0.03]
[1755979585616,52.75674394,204.33,204.32,0.03]
[1755979586618,53.43674394,204.33,204.32,0.03]
[1755979587827,52.75674394,204.33,204.32,0.03]
[1755979587995,52.75675762,204.33,204.32,0.03]
[1755979590119,52.75675762,204.33,204.32,0.75]
[1755979590312,52.75675762,204.33,204.32,0.03]
[1755979592416,49.07948574,204.33,204.32,0.03]
[1755979594039,52.7567387,204.33,204.32,0.03]
[1755979594217,49.73948574,204.33,204.32,0.03]
[1755979594534,53.41675813,204.33,204.32,0.03]
[1755979598424,53.41515974,204.33,204.32,0.03]
[1755979601439,52.75515974,204.33,204.32,0.03]
[1755979607632,52.75529532,204.33,204.32,0.03]
[1755979608443,52.75529678,204.33,204.32,0.03]
[1755979612345,53.41529678,204.33,204.32,0.03]
[1755979613847,52.75529678,204.33,204.32,0.03]
[1755979614642,53.41529678,204.33,204.32,0.03]
[1755979614824,53.41529678,204.33,204.32,1e-08]
[1755979615025,55.25298166,204.33,204.32,1e-08]
[1755979616238,0.28432314,204.3,204.29,1e-08]
[1755979616435,41.24013418,204.3,204.29,1e-08]
[1755979616640,49.44006163,204.3,204.29,1e-08]
[1755979617536,63.02980215,204.3,204.29,1e-08]
[1755979617938,64.86449115,204.3,204.29,1e-08]
[1755979618254,67.92456475,204.3,204.29,1e-08]
[1755979618446,0.28432314,204.28,204.27,0.03]
[1755979618652,48.77420814,204.28,204.27,0.03]
[1755979618848,49.44420814,204.28,204.27,0.03]
[1755979619036,49.44123767,204.28,204.27,0.03]